fUSD/lending_fUSD_20241222
["ID","MTS","AMOUNT","RATE_DAILY","PERIOD"]
[346256144,1734834641615,-500.0,0.00019351,2]
[346256145,1734834641624,-889.73,0.00019351,2]
[346256146,1734834641633,-737.65,0.00019351,2]
[346256147,1734834641642,-276.82757337,0.00019351,2]
[346256148,1734834641650,-500.0,0.00019351,2]
[346256149,1734834641659,-993.61,0.00019351,2]
[346256150,1734834641668,-7029.72,0.00019351,2]
[346256151,1734834641677,-863.15,0.00019351,2]
[346256152,1734834641686,-232.80794612,0.00019351,2]
[346256153,1734834641695,-650.7,0.00019351,2]
[346256154,1734834641704,-500.0,0.00019351,2]
[346256155,1734834641713,-2508.18,0.00019351,2]
[346256156,1734834641722,-500.0,0.00019351,2]
[346256157,1734834641731,-771.14,0.00019351,2]
[346256158,1734834641740,-3714.34,0.00019351,2]
[346256159,1734834641749,-500.0,0.00019351,2]
[346256160,1734834641758,-857.54,0.00019351,2]
[346256161,1734834641767,-2636.68,0.00019351,2]
[346256162,1734834641777,-500.0,0.00019351,2]
[346256163,1734834641786,-739.77,0.00019351,2]
[346256164,1734834641796,-1563.34,0.00019351,2]
[346256165,1734834641805,-500.0,0.00019351,2]
[346256166,1734834641814,-1849.57,0.00019351,2]
[346256167,1734834641823,-540.07641022,0.00019351,2]
[346256168,1734834641832,-558.21,0.00019351,2]
[346256169,1734834641842,-500.0,0.00019351,2]
[346256170,1734834641851,-1322.71,0.00019351,2]
[346256171,1734834641860,-500.0,0.00019351,2]
[346256172,1734834641869,-1141.0,0.00019351,2]
[346256173,1734834641878,-500.0,0.00019351,2]
[346256174,1734834641886,-8980.96106246,0.00019351,2]
[346256175,1734834642152,-3394.19999997,0.00019351,2]
[346256176,1734834642163,-8205.82893757,0.00019351,2]
[346256177,1734834642172,-1333.53,0.00019351,2]
[346256178,1734834642181,-522.35854015,0.00019351,2]
[346256179,1734834642192,-3415.0,0.00019351,2]
[346256180,1734834642227,-5064.18145985,0.00019351,2]
[346256181,1734834642239,-597.86697812,0.00019351,2]
[346256182,1734834642250,-13.79302188,0.00019351,2]
[346256183,1734834642259,-982.44,0.00019351,2]
[346256184,1734834642270,-1870.77,0.00019351,2]
[346256185,1734834642281,-510.56268942,0.00019351,2]
[346256186,1734834642291,-886.52,0.00019351,2]
[346256187,1734834642302,-500.0,0.00019351,2]
[346256188,1734834642313,-725.2,0.00019351,2]
[346256189,1734834642323,-503.0398209,0.00019351,2]
[346256190,1734834642332,-3347.34,0.00019351,2]
[346256191,1734834642345,-1157.04,0.00019351,2]
[346256192,1734834642355,-5540.77,0.00019351,2]
[346256193,1734834642363,-500.0,0.00019351,2]
[346256194,1734834642374,-500.0,0.00019351,2]
[346256195,1734834642383,-4938.65,0.00019351,2]
[346256196,1734834642393,-1588.6,0.00019351,2]
[346256197,1734834642402,-500.0,0.00019351,2]
[346256198,1734834642412,-506.8006068,0.00019351,2]
[346256199,1734834642426,-264.339999,0.00019351,2]
[346256200,1734834642438,-187.0693942,0.00019351,2]
[346256201,1734834642448,-898.78,0.00019351,2]
[346256202,1734834642458,-345.9806058,0.00019351,2]
[346256203,1734834643373,-846.0,0.00019351,2]
[346256204,1734834643384,-495.58079881,0.00019351,2]
[346256205,1734834643396,-834.70719141,0.00019351,2]
[346256206,1734834643413,-537.35,0.00019351,2]
[346256208,1734834643544,-1950.0,0.00019351,2]
[346256209,1734834643556,-266.91140398,0.00019351,2]
[346256210,1734834643565,-746.35,0.00019351,2]
[346256211,1734834643574,-85.18594607,0.00019351,2]
[346256212,1734834643672,-414.81405393,0.00019351,2]
[346256213,1734834643682,-381.87101667,0.00019351,2]
[346256214,1734834646183,-118.12898333,0.00019351,2]
[346256215,1734834646192,-2175.31,0.00019351,2]
[346256216,1734834646202,-500.0,0.00019351,2]
[346256218,1734834646211,-3292.8,0.00019351,2]
[346256220,1734834646220,-500.0,0.00019351,2]
[346256222,1734834646230,-1133.76101667,0.00019351,2]
[346256223,1734834646370,-1466.31898333,0.00019351,2]
[346256224,1734834646380,-2210.28,0.00019351,2]
[346256225,1734834646389,-769.57,0.00019351,2]
[346256226,1734834646398,-500.0,0.00019351,2]
[346256227,1734834646408,-1248.1,0.00019351,2]
[346256228,1734834646417,-3539.58812097,0.00019351,2]
[346256229,1734834646428,-736.11187903,0.00019351,2]
[346256230,1734834646437,-500.0,0.00019351,2]
[346256231,1734834646447,-205.16307682,0.00019351,2]
[346256234,1734834646733,-294.83692318,0.00019351,2]
[346256235,1734834646743,-114.89518682,0.00019351,2]
[346256236,1734834646754,-328.68581002,0.00019351,2]
[346256237,1734834999104,202.41,0.00010137,2]
[346256245,1734835832570,-417.4,0.00016379,2]
[346256246,1734835832580,-202.41,0.00016813,2]
[346256247,1734835832589,-506.93064981,0.00017664,2]
[346256248,1734835832599,-500.0,0.00017664,2]
[346256249,1734835832608,-150.0,0.00017803,2]
[346256250,1734835832618,-150.0,0.00017803,2]
[346256251,1734835832627,-150.0,0.00017803,2]
[346256252,1734835832636,-150.62168066,0.00017803,2]
[346256253,1734835832645,-82.18569784,0.00017803,2]
[346256254,1734835832660,-67.81430216,0.00017803,2]
[346256255,1734835832671,-1000.0,0.00017989,2]
[346256256,1734835832681,-1397.48,0.00018067,2]
[346256257,1734835832690,-150.0,0.00018198,2]
[346256258,1734835832699,-250.0,0.00018246,2]
[346256259,1734835832708,-74.22569784,0.00018306,2]
[346256260,1734835832778,-99.68430216,0.00018306,2]
[346256261,1734835832787,-174.43530112,0.0001832,2]
[346256294,1734835838622,-231.81469888,0.0001832,2]
[346256295,1734835838633,-300.0,0.00018352,2]
[346256296,1734835838643,-98.18530112,0.00018353,2]
[346256297,1734835838655,-181.63469888,0.00018353,2]
[346256298,1734835838666,-446.433,0.0001838,2]
[346256299,1734835838676,-167.57,0.00018553,30]
[346256300,1734835838686,-293.0,0.00018588,2]
[346256301,1734835838697,-150.0,0.00018594,2]
[346256302,1734835838706,-417.4,0.00018643,2]
[346256303,1734835838716,-150.0,0.00018792,2]
[346256304,1734835838725,-150.0,0.0001899,2]
[346256305,1734835838734,-1002.17,0.00019,2]
[346256306,1734835838743,-300.0,0.00019014,2]
[346256307,1734835838753,-557.67286767,0.00019074,2]
[346256308,1734835838767,-40000.0,0.00019172,2]
[346256309,1734835838778,-703.2682,0.00019174,2]
[346256310,1734835838787,-697.4124,0.00019174,2]
[346256311,1734835838796,-1027.86582963,0.00019174,2]
[346256312,1734835838806,-500.0,0.00019197,2]
[346256313,1734835838815,-2000.0,0.00019197,2]
[346256314,1734835838824,-1027.86582963,0.00019232,2]
[346256315,1734835838833,-184.20576934,0.00019249,2]
[346256317,1734835838842,-219.1003,0.00019251,2]
[346256319,1734835838851,-152.50424065,0.00019251,2]
[346256321,1734835838860,-23177.90259086,0.00019273,2]
[346256323,1734835838869,-1277.96,0.00019273,2]
[346256325,1734835838878,-849.58,0.00019273,2]
[346256326,1734835838887,-500.0,0.00019273,2]
[346256327,1734835838896,-500.0,0.00019273,2]
[346256328,1734835838905,-3155.6,0.00019273,2]
[346256329,1734835838914,-173.19752603,0.00019273,2]
[346256330,1734835838923,-4732.88,0.00019273,2]
[346256331,1734835838931,-1196.1,0.00019273,2]
[346256332,1734835838940,-853.83,0.00019273,2]
[346256333,1734835838949,-1214.12,0.00019273,2]
[346256334,1734835838957,-2118.19,0.00019273,2]
[346256335,1734835838966,-962.02,0.00019273,2]
[346256336,1734835838975,-500.0,0.00019273,2]
[346256337,1734835838984,-10896.77,0.00019273,2]
[346256338,1734835838993,-4051.46,0.00019273,2]
[346256339,1734835839002,-500.0,0.00019273,2]
[346256340,1734835839012,-500.0,0.00019273,2]
[346256341,1734835839022,-7048.78,0.00019273,2]
[346256342,1734835839030,-873.68,0.00019273,2]
[346256343,1734835839039,-637.11459367,0.00019273,2]
[346256344,1734835839048,-500.0,0.00019273,2]
[346256353,1734835839251,-500.0,0.00019273,2]
[346256354,1734835839262,-500.0,0.00019273,2]
[346256355,1734835839271,-933.36,0.00019273,2]
[346256356,1734835839281,-4498.11826892,0.00019274,2]
[346256361,1734835840732,-530.69259837,0.00019273,2]
[346256362,1734835840746,-298.82119863,0.00019273,2]
[346256363,1734835840756,-14195.81037054,0.00019274,2]
[346256364,1734835840767,-503.22600566,0.00019274,2]
[346256365,1734835840928,-502.43057978,0.00019273,2]
[346256366,1734835840938,-181583.45145488,0.00019274,2]
[346256367,1734835840947,-168.0983124,0.00019274,2]
[346256368,1734835840956,-5428.2275,0.00019274,2]
[346256369,1734835840966,-1027.86582963,0.00019291,2]
[346256370,1734835840975,-184.20576928,0.00019299,2]
[346256371,1734835840984,-178.39582438,0.00019302,2]
[346256372,1734835840993,-1472.684,0.00019302,2]
[346256373,1734835841002,-155.12,0.0001934,2]
[346256374,1734835841014,-155.12,0.0001934,2]
[346256375,1734835841024,-155.12,0.0001934,2]
[346256376,1734835841034,-155.12,0.0001934,2]
[346256377,1734835841043,-180.9617382,0.0001934,2]
[346256378,1734835841052,-180.9617382,0.0001934,2]
[346256379,1734835841061,-8025.47422,0.0001934,2]
[346256380,1734835841070,-155.12,0.0001934,2]
[346256381,1734835841079,-180.9617382,0.00019342,2]
[346256382,1734835841088,-18177.02204538,0.00019349,3]
[346256383,1734835841097,-173069.44948176,0.00019349,3]
[346256388,1734835843789,-500.0,0.00019273,2]
[346256389,1734835843799,-2221.28325512,0.00019349,3]
[346256390,1734835843812,-500.57827625,0.00019349,3]
[346256391,1734835843823,-3953.81927455,0.00019349,3]
[346256392,1734835843992,-220469.57038687,0.00019349,3]
[346256416,1734835846551,-4535.05686074,0.00019349,3]
[346256418,1734835846564,-7842.90697084,0.00019349,3]
[346256421,1734835846576,-1138.28203649,0.00019349,3]
[346256422,1734835846587,-6674.57512002,0.00019349,3]
[346256423,1734835846598,-199649.65713404,0.00019349,3]
[346256426,1734836334754,102879.78476253,0.0002,120]
[346256427,1734836357124,102879.78476253,0.0002,120]
[346256428,1734836374591,102879.78476253,0.0002,120]
[346256429,1734836403213,74240.43047493,0.0002,120]
[346256445,1734837031878,-268.25042228,0.00016421,2]
[346256446,1734837031887,-227.28426632,0.00016421,2]
[346256447,1734837031898,-148.37573368,0.00016421,2]
[346256448,1734837031907,-300.0,0.00017664,2]
[346256449,1734837031916,-150.0,0.00017803,2]
[346256450,1734837031925,-150.0,0.00017803,2]
[346256451,1734837031934,-150.0,0.00017803,2]
[346256452,1734837031943,-152.97621486,0.00017803,2]
[346256453,1734837031952,-223.85,0.00017831,2]
[346256454,1734837031961,-2003.35739208,0.00018,2]
[346256455,1734837032100,-10936.2850705,0.00018,2]
[346256456,1734837032137,-2216.7,0.00018,2]
[346256457,1734837032148,-4843.65753742,0.00018,2]
[346256458,1734837032158,-74.4806415,0.00018101,30]
[346256459,1734837032168,-93.0893585,0.00018101,30]
[346256460,1734837032177,-1000.0,0.00018161,2]
[346256461,1734837032187,-6039.24515316,0.000182,4]
[346256462,1734837032198,-10706.81711968,0.000182,4]
[346256463,1734837032209,-1870.04625213,0.000182,4]
[346256465,1734837037827,-15203.82,0.00018078,2]
[346256466,1734837037837,-1383.89147503,0.000182,4]
[346256467,1734837037846,-250.0,0.00018293,2]
[346256468,1734837037855,-171.8,0.00018339,2]
[346256469,1734837037864,-427.642,0.0001838,2]
[346256470,1734837037873,-203.12,0.00018388,2]
[346256471,1734837037882,-599.8,0.00018398,2]
[346256472,1734837037892,-10732.54506121,0.000184,6]
[346256473,1734837037903,-419.275395,0.000184,6]
[346256474,1734837037914,-1822.6041303,0.000184,6]
[346256475,1734837037944,-1934.19,0.000184,6]
[346256476,1734837037954,-974.80061012,0.000184,6]
[346256477,1734837037966,-2351.2886017,0.000184,6]
[346256507,1734837039987,-1765.29620167,0.000184,6]
[346256508,1734837039996,-299.99,0.00018533,4]
[346256509,1734837040005,-999.99,0.00018533,2]
[346256510,1734837040014,-799.02379836,0.00018533,2]
[346256511,1734837040275,-311.66620164,0.00018533,2]
[346256512,1734837040284,-1523.12,0.00018533,2]
[346256513,1734837040294,-150.99,0.00018533,2]
[346256514,1734837040303,-3288.57063752,0.00018533,2]
[346256516,1734837044245,-306.6159621,0.00018533,2]
[346256517,1734837044257,-688.49999868,0.00018533,2]
[346256518,1734837044269,-1430.46174163,0.00018533,2]
[346256519,1734837045639,-562.2368894,0.00018533,2]
[346256520,1734837045893,-1663.391616,0.00018533,2]
[346256521,1734837045904,-2060.21315467,0.00018533,2]
[346256522,1734837045914,-2528.30150018,0.00018533,2]
[346256523,1734837045924,-375.3,0.00018533,2]
[346256524,1734837045935,-7096.38849982,0.00018533,2]
[346256525,1734837045944,-150.99,0.00018533,2]
[346256526,1734837045953,-20000.0,0.000186,8]
[346256527,1734837045963,-375.66,0.00018685,2]
[346256528,1734837045972,-152.0,0.00018697,3]
[346256529,1734837045981,-20000.0,0.000188,10]
[346256530,1734837045992,-49838.29986872,0.000189,2]
[346256531,1734837046013,-357.05685109,0.000189,2]
[346256545,1734837875349,182.16,0.00010137,2]
[346256590,1734838232152,-1005.00961891,0.000154,2]
[346256591,1734838232165,-2176.26698885,0.000154,2]
[346256602,1734838238136,-4072.47458103,0.000154,2]
[346256603,1734838238146,-377.9,0.00016351,2]
[346256604,1734838238155,-182.16,0.00016813,2]
[346256605,1734838238168,-573.66846894,0.00017664,2]
[346256606,1734838238178,-500.0,0.00017664,2]
[346256607,1734838238188,-177.91361554,0.00017803,2]
[346256608,1734838238198,-250.93,0.00017934,2]
[346256609,1734838238207,-8820.96,0.0001795,2]
[346256610,1734838238217,-772.95,0.00018022,2]
[346256611,1734838238227,-1000.0,0.00018114,2]
[346256612,1734838238237,-171.8,0.00018174,2]
[346256613,1734838238246,-250.0,0.00018193,2]
[346256614,1734838238255,-410.081,0.0001838,2]
[346256615,1734838238264,-500.0,0.00018533,2]
[346256616,1734838238274,-377.9,0.00018615,2]
[346256617,1734838238283,-357.0568,0.000187,2]
[346256618,1734838238293,-151.00631117,0.00018712,2]
[346256619,1734838238302,-1061.67078685,0.0001879,2]
[346256621,1734838238312,-195464.61737345,0.000188,2]
[346256630,1734838240106,-367.02480186,0.000188,2]
[346256631,1734838240280,-390.21941486,0.000188,2]
[346256632,1734838240289,-97.24058514,0.0001889,2]
[346256638,1734838243834,-277.00941486,0.0001889,2]
[346256640,1734838243843,-235.99058514,0.00018891,2]
[346256672,1734838245938,-681.0,0.00018891,2]
[346256679,1734838246087,-144.68020165,0.00018891,2]
[346256680,1734838246097,-75765.62128019,0.000189,2]
[346256681,1734838246106,-1000.0,0.000189,6]
[346256682,1734838246116,-500.0,0.000189,2]
[346256683,1734838246125,-1389.82538,0.000189,2]
[346256684,1734838246134,-151.00631117,0.00018904,2]
[346256685,1734838246143,-374.25,0.0001899,2]
[346256686,1734838246152,-1061.67078679,0.00018992,2]
[346256687,1734838246161,-500.0,0.00019,26]
[346256688,1734838246171,-20000.0,0.00019,12]
[346256689,1734838246180,-249.09,0.00019014,2]
[346256690,1734838246189,-152.0,0.00019068,4]
[346256691,1734838246199,-163.7384616,0.00019078,2]
[346256692,1734838246209,-1061.67078679,0.00019093,2]
[346256693,1734838246218,-151.00631117,0.00019096,2]
[346256694,1734838246227,-163.73846158,0.00019156,2]
[346256695,1734838246236,-1403.049,0.00019168,2]
[346256696,1734838246245,-155.12,0.00019168,2]
[346256697,1734838246254,-374.25,0.00019168,2]
[346256698,1734838246263,-374.25,0.00019168,2]
[346256699,1734838246272,-374.25,0.00019168,2]
[346256700,1734838246281,-500.0,0.00019178,2]
[346256701,1734838246291,-500.0,0.00019178,2]
[346256702,1734838246300,-500.0,0.00019178,2]
[346256703,1734838246309,-503.78489118,0.00019178,2]
[346256704,1734838246318,-502.55140154,0.00019178,2]
[346256705,1734838246327,-500.0,0.00019178,2]
[346256706,1734838246336,-500.0,0.00019178,2]
[346256707,1734838246345,-500.0,0.00019178,2]
[346256708,1734838246354,-502.52791862,0.00019178,2]
[346256709,1734838246363,-500.35381653,0.00019178,2]
[346256710,1734838246371,-506.49508603,0.00019178,2]
[346256711,1734838246381,-501.34093506,0.00019178,2]
[346256712,1734838246390,-504.88244364,0.00019178,2]
[346256713,1734838246398,-500.0,0.00019178,2]
[346256714,1734838246407,-500.0,0.00019178,2]
[346256715,1734838246416,-500.0,0.00019178,2]
[346256716,1734838246428,-500.0,0.00019178,2]
[346256717,1734838246437,-508.70035578,0.00019178,2]
[346256718,1734838246446,-500.0,0.00019178,2]
[346256720,1734838246455,-200.0,0.00019178,2]
[346256721,1734838246464,-500.0,0.00019178,2]
[346256722,1734838246473,-230.94993866,0.00019178,2]
[346256723,1734838246482,-500.0,0.00019178,2]
[346256724,1734838246491,-500.0,0.00019178,2]
[346256725,1734838246500,-500.0,0.00019178,2]
[346256726,1734838246508,-500.0,0.00019178,2]
[346256727,1734838246517,-492.0,0.00019178,2]
[346256728,1734838246526,-500.0,0.00019178,2]
[346256729,1734838246536,-150.22205419,0.00019178,2]
[346256730,1734838246545,-500.0,0.00019178,2]
[346256731,1734838246554,-500.0,0.00019178,2]
[346256732,1734838246563,-500.0,0.00019178,2]
[346256733,1734838246572,-500.0,0.00019178,2]
[346256734,1734838246581,-158.881523,0.00019178,2]
[346256735,1734838246590,-154.570039,0.00019178,2]
[346256736,1734838246599,-1343.179263,0.00019178,2]
[346256737,1734838246608,-437.01096088,0.00019178,2]
[346256738,1734838246618,-500.0,0.00019178,2]
[346256739,1734838246627,-500.0,0.00019178,2]
[346256740,1734838246636,-926.94998,0.00019178,2]
[346256741,1734838246645,-517.64036478,0.00019178,2]
[346256742,1734838246654,-500.0,0.00019178,2]
[346256743,1734838246663,-501.25150434,0.00019178,2]
[346256744,1734838246673,-500.0,0.00019178,2]
[346256745,1734838246682,-505.42166181,0.00019178,2]
[346256746,1734838246691,-500.0,0.00019178,2]
[346256747,1734838246700,-501.65314674,0.00019178,2]
[346256748,1734838246709,-501.19981356,0.00019178,2]
[346256749,1734838246718,-502.61372343,0.00019178,2]
[346256750,1734838246727,-500.57417738,0.00019178,2]
[346256751,1734838246736,-500.0,0.00019178,2]
[346256752,1734838246745,-500.0,0.00019178,2]
[346256753,1734838246754,-500.0,0.00019178,2]
[346256754,1734838246764,-500.0,0.00019178,2]
[346256755,1734838246773,-500.0,0.00019178,2]
[346256756,1734838246783,-251.6451559,0.00019178,2]
[346256757,1734838246793,-500.0,0.00019178,2]
[346256758,1734838246803,-500.0,0.00019178,2]
[346256759,1734838246812,-505.57256153,0.00019178,2]
[346256760,1734838246821,-500.0,0.00019178,2]
[346256761,1734838246830,-500.0,0.00019178,2]
[346256762,1734838246839,-359.14802239,0.00019178,2]
[346256763,1734838246848,-504.44848516,0.00019178,2]
[346256764,1734838246857,-501.71667172,0.00019178,2]
[346256765,1734838246867,-339.11425063,0.00019178,2]
[346256766,1734838246876,-500.0,0.00019178,2]
[346256767,1734838246885,-223.14458597,0.00019178,2]
[346256768,1734838246894,-500.0,0.00019178,2]
[346256769,1734838246904,-500.0,0.00019178,2]
[346256770,1734838246913,-500.0,0.00019178,2]
[346256771,1734838246925,-500.0,0.00019178,2]
[346256772,1734838246933,-500.0,0.00019178,2]
[346256773,1734838246943,-500.0,0.00019178,2]
[346256774,1734838246952,-500.0,0.00019178,2]
[346256775,1734838246962,-2004.44,0.00019178,2]
[346256776,1734838246970,-500.0,0.00019178,2]
[346256777,1734838246979,-500.0,0.00019178,2]
[346256778,1734838246988,-500.0,0.00019178,2]
[346256779,1734838246997,-504.55489268,0.00019178,2]
[346256780,1734838247006,-500.0,0.00019178,2]
[346256781,1734838247017,-500.0,0.00019178,2]
[346256782,1734838247026,-500.0,0.00019178,2]
[346256783,1734838247035,-500.0,0.00019178,2]
[346256784,1734838247047,-500.0,0.00019178,2]
[346256785,1734838247056,-500.0,0.00019178,2]
[346256786,1734838247065,-500.0,0.00019178,2]
[346256787,1734838247074,-500.0,0.00019178,2]
[346256788,1734838247083,-501.38983517,0.00019178,2]
[346256789,1734838247094,-500.0,0.00019178,2]
[346256790,1734838247102,-500.0,0.00019178,2]
[346256791,1734838247111,-500.0,0.00019178,2]
[346256792,1734838247121,-501.51566609,0.00019178,2]
[346256793,1734838247130,-501.56486231,0.00019178,2]
[346256794,1734838247139,-500.0,0.00019178,2]
[346256795,1734838247148,-703.47322965,0.00019178,2]
[346256796,1734838247157,-500.0,0.00019178,2]
[346256797,1734838247166,-500.0,0.00019178,2]
[346256798,1734838247178,-500.0,0.00019178,2]
[346256799,1734838247187,-500.0,0.00019178,2]
[346256800,1734838247196,-500.0,0.00019178,2]
[346256801,1734838247205,-506.12383212,0.00019178,2]
[346256802,1734838247214,-500.87531381,0.00019178,2]
[346256803,1734838247223,-500.0,0.00019178,2]
[346256804,1734838247232,-500.0,0.00019178,2]
[346256805,1734838247241,-500.0,0.00019178,2]
[346256806,1734838247250,-500.0,0.00019178,2]
[346256807,1734838247259,-500.0,0.00019178,2]
[346256808,1734838247268,-506.38465763,0.00019178,2]
[346256809,1734838247277,-500.91050755,0.00019178,2]
[346256810,1734838247286,-500.0,0.00019178,2]
[346256811,1734838247295,-500.0,0.00019178,2]
[346256812,1734838247305,-500.0,0.00019178,2]
[346256813,1734838247314,-500.0,0.00019178,2]
[346256814,1734838247323,-500.0,0.00019178,2]
[346256815,1734838247332,-500.0,0.00019178,2]
[346256816,1734838247341,-500.0,0.00019178,2]
[346256817,1734838247350,-1298.74,0.00019178,2]
[346256818,1734838247359,-503.09251165,0.00019178,2]
[346256819,1734838247368,-637.80318283,0.00019178,2]
[346256820,1734838247377,-509.61146923,0.00019178,2]
[346256821,1734838247386,-500.0,0.00019178,2]
[346256822,1734838247395,-509.53113089,0.00019178,2]
[346256823,1734838247404,-500.0,0.00019178,2]
[346256824,1734838247414,-500.0,0.00019178,2]
[346256825,1734838247426,-507.44987645,0.00019178,2]
[346256826,1734838247436,-500.0,0.00019178,2]
[346256827,1734838247445,-500.0,0.00019178,2]
[346256828,1734838247454,-500.0,0.00019178,2]
[346256829,1734838247463,-288.40142181,0.00019178,2]
[346256830,1734838247472,-500.0,0.00019178,2]
[346256831,1734838247481,-500.0,0.00019178,2]
[346256832,1734838247490,-519.83636993,0.00019178,2]
[346256833,1734838247499,-252.49156168,0.00019178,2]
[346256834,1734838247508,-500.0,0.00019178,2]
[346256835,1734838247517,-500.0,0.00019178,2]
[346256836,1734838247526,-500.0,0.00019178,2]
[346256837,1734838247535,-511.0807118,0.00019178,2]
[346256838,1734838247545,-500.0,0.00019178,2]
[346256839,1734838247555,-500.0,0.00019178,2]
[346256840,1734838247564,-500.0,0.00019178,2]
[346256841,1734838247573,-465.15896521,0.00019178,2]
[346256860,1734839432240,-354.9,0.00016236,2]
[346256861,1734839432250,-63.08026338,0.00018103,2]
[346256862,1734839432262,-108.71973662,0.00018103,2]
[346256863,1734839432271,-227.03,0.00018173,2]
[346256864,1734839432280,-299.04,0.00018184,2]
[346256865,1734839432294,-1000.0,0.00018191,2]
[346256866,1734839432305,-300.0,0.00018198,2]
[346256867,1734839432315,-16373.16,0.00018199,2]
[346256868,1734839432325,-712.85,0.0001828,2]
[346256869,1734839432335,-250.0,0.00018283,2]
[346256870,1734839432344,-427.596,0.0001838,2]
[346256871,1734839432354,-354.9,0.000185,2]
[346256872,1734839432365,-152.0,0.00018771,3]
[346256873,1734839432375,-10000.0,0.00019,2]
[346256874,1734839432386,-10000.0,0.00019,2]
[346256875,1734839432397,-10000.0,0.00019,2]
[346256876,1734839432409,-10000.0,0.00019,2]
[346256877,1734839432419,-2000.0,0.00019025,2]
[346256878,1734839432430,-500.0,0.00019025,2]
[346256879,1734839432442,-637.00247211,0.00019078,2]
[346256880,1734839432452,-6801.719,0.00019078,2]
[346256881,1734839432463,-637.00247207,0.00019147,2]
[346256882,1734839432473,-150.0,0.0001916,2]
[346256883,1734839432484,-150.0,0.00019162,2]
[346256884,1734839432494,-150.0,0.0001917,2]
[346256885,1734839432504,-150.0,0.00019171,2]
[346256886,1734839432515,-150.0,0.00019172,2]
[346256887,1734839432527,-150.0,0.00019173,2]
[346256888,1734839432536,-214.54383623,0.00019173,2]
[346256889,1734839432545,-1122.439,0.00019177,2]
[346256890,1734839432555,-504.7424588,0.00019178,2]
[346256891,1734839432564,-500.0,0.00019178,2]
[346256892,1734839432573,-502.1792197,0.00019178,2]
[346256893,1734839432583,-502.24790379,0.00019178,2]
[346256894,1734839432593,-580.1384495,0.00019178,2]
[346256895,1734839432603,-500.0,0.00019178,2]
[346256896,1734839432611,-501.72963227,0.00019178,2]
[346256897,1734839432622,-501.96349383,0.00019178,2]
[346256898,1734839432632,-501.49160568,0.00019178,2]
[346256899,1734839432642,-501.74604157,0.00019178,2]
[346256900,1734839432652,-502.07853648,0.00019178,2]
[346256901,1734839432662,-561.92024609,0.00019178,2]
[346256902,1734839432672,-500.0,0.00019178,2]
[346256903,1734839432682,-351.16402591,0.00019178,2]
[346256904,1734839432692,-500.0,0.00019178,2]
[346256905,1734839432701,-500.7086856,0.00019178,2]
[346256906,1734839432711,-503.72764076,0.00019178,2]
[346256907,1734839432721,-501.55952831,0.00019178,2]
[346256908,1734839432730,-500.63237327,0.00019178,2]
[346256909,1734839432739,-504.06622095,0.00019178,2]
[346256910,1734839432748,-156.0,0.00019178,30]
[346256911,1734839432758,-500.52550746,0.00019178,2]
[346256912,1734839432768,-500.0,0.00019178,2]
[346256913,1734839432776,-1920.92,0.00019178,2]
[346256914,1734839432786,-545.07951311,0.00019178,2]
[346256915,1734839432795,-294.30458547,0.00019178,2]
[346256918,1734839432804,-635.76902572,0.00019178,2]
[346256921,1734839432813,-500.0,0.00019178,2]
[346256924,1734839432822,-517.8510182,0.00019178,2]
[346256927,1734839432832,-514.82648837,0.00019178,2]
[346256930,1734839432841,-500.0,0.00019178,2]
[346256933,1734839432850,-502.60058556,0.00019178,2]